bitfinex-derivatives/quotes_SOLF0:USTF0_20250625
["timestamp","ask_amount","ask_price","bid_price","bid_amount"]
[1750865679388,11.38778889,143.31,143.13,4.8141]
[1750865679582,51.2347,143.3,143.17,11.38778889]
[1750865679778,46.46,143.29,143.16,46.46]
[1750865679979,46.46,143.29,143.21,11.38778889]
[1750865680370,46.46,143.29,143.24,6.9774]
[1750865680577,46.46,143.29,143.16,46.46]
[1750865680883,6.9763,143.27,143.22,6.9781]
[1750865681067,46.46,143.29,143.21,11.38778889]
[1750865681267,6.9761,143.27,143.22,6.978]
[1750865681470,4.7747,143.3,143.21,11.38778889]
[1750865681981,11.7494,143.3,143.21,59.66778889]
[1750865682181,11.7494,143.3,143.22,2.2543]
[1750865682378,11.7494,143.3,143.25,6.9768]
[1750865682575,6.9751,143.29,143.22,2.2543]
[1750865682777,4.7747,143.3,143.22,13.64208889]
[1750865683177,652.78,143.33,143.25,11.38778889]
[1750865683585,652.78,143.33,143.27,6.9756]
[1750865683778,11.38778889,143.32,143.21,48.28]
[1750865683988,13.72378889,143.32,143.21,48.28]
[1750865684182,13.72378889,143.32,143.21,59.66778889]
[1750865684776,6.9758,143.28,143.23,6.9778]
[1750865685274,50.6571,143.3,143.21,59.66778889]
[1750865685883,50.6571,143.3,143.25,6.9769]
[1750865686183,2.3771,143.3,143.25,6.9769]
[1750865686385,9.3519,143.3,143.25,6.9769]
[1750865687084,2.3771,143.3,143.26,6.9763]
[1750865687474,9.3519,143.3,143.25,6.9768]
[1750865687682,2.3771,143.3,143.23,11.38778889]
[1750865688185,2.3771,143.3,143.22,11.38778889]
[1750865688580,2.3771,143.3,143.21,48.28]
[1750865688979,2.3771,143.3,143.22,11.38778889]
[1750865690189,2.3771,143.3,143.23,11.38778889]
[1750865690383,2.3771,143.3,143.21,48.28]
[1750865690576,2.3771,143.3,143.22,11.38778889]
[1750865690783,2.3771,143.3,143.21,48.28]
[1750865690983,9.3519,143.3,143.22,11.38778889]
[1750865691283,9.3519,143.3,143.25,6.9767]
[1750865691284,2.3771,143.3,143.25,6.9767]
[1750865691493,9.3518,143.3,143.22,11.38778889]
[1750865691683,2.3771,143.3,143.22,11.38778889]
[1750865692082,2.3771,143.3,143.21,59.66778889]
[1750865692382,2.3771,143.3,143.28,6.9752]
[1750865692583,2.3771,143.3,143.21,59.66778889]
[1750865692885,2.336,143.32,143.24,11.38778889]
[1750865693090,2.336,143.32,143.25,48.28]
[1750865693789,2.336,143.32,143.29,6.9747]
[1750865694184,2.49998,143.34,143.25,48.28]
[1750865694388,11.38778889,143.31,143.19,11.38778889]
[1750865694589,48.28,143.31,143.22,11.38778889]
[1750865695279,6.9748,143.3,143.26,6.9762]
[1750865695980,6.975,143.29,143.26,6.9762]
[1750865696185,59.66778889,143.33,143.23,48.28]
[1750865696381,6.976,143.27,143.23,48.28]
[1750865696584,6.976,143.27,143.23,55.2577]
[1750865697192,6.9757,143.28,143.24,6.9774]
[1750865697589,11.38778889,143.32,143.23,48.28]
[1750865697785,6.9742,143.31,143.23,48.28]
[1750865698188,18.36158889,143.32,143.28,6.9752]
[1750865698394,52.9558,143.33,143.23,59.66778889]
[1750865698787,4.6758,143.33,143.23,48.28]
[1750865698997,4.6758,143.33,143.23,59.66778889]
[1750865699287,0.25428,143.34,143.26,11.38778889]
[1750865699488,0.25428,143.34,143.27,48.28]
[1750865699795,48.53428,143.34,143.24,12.8500387]
[1750865699988,48.53428,143.34,143.22,48.28]
[1750865700488,2.3575,143.33,143.22,48.28]
[1750865700891,11.38778889,143.32,143.22,48.28]
[1750865701393,4.6965,143.33,143.22,48.28]
[1750865701700,4.6965,143.33,143.23,11.38778889]
[1750865701996,4.6965,143.33,143.22,61.1300387]
[1750865701997,0.25428,143.34,143.26,11.38778889]
[1750865702192,0.25428,143.34,143.29,11.38778889]
[1750865702790,0.25428,143.34,143.33,6.9731]
[1750865702991,0.25428,143.34,143.28,4.7925]
[1750865703197,0.25428,143.34,143.29,8.66096916]
[1750865703385,0.25428,143.34,143.32,6.9735]
[1750865704189,0.25428,143.34,143.28,13.45346916]
[1750865704391,0.25428,143.34,143.27,56.94096916]
[1750865704699,6.9733,143.33,143.29,6.9748]
[1750865705000,4.96008,143.34,143.27,48.28]
[1750865705501,4.96008,143.34,143.28,6.9754]
[1750865705798,7.24618,143.34,143.27,48.28]
[1750865706000,6.9738,143.32,143.28,6.9751]
[1750865706197,6.9738,143.32,143.27,48.28]
[1750865706893,6.9736,143.32,143.27,48.28]
[1750865707098,4.96008,143.34,143.27,56.94096916]
[1750865707488,0.25428,143.34,143.27,56.94096916]
[1750865707695,0.25428,143.34,143.27,68.32875805]
[1750865707894,11.38778889,143.33,143.26,6.9763]
[1750865708301,11.38778889,143.33,143.24,8.66096916]
[1750865708302,4.6396,143.32,143.24,8.66096916]
[1750865708501,6.9751,143.29,143.26,6.9762]
[1750865708704,16.02738889,143.32,143.26,6.9762]
[1750865709094,6.9749,143.3,143.26,6.9762]
[1750865709408,16.02738889,143.32,143.23,11.00126916]
[1750865709595,48.28,143.31,143.23,8.66096916]
[1750865709803,11.38778889,143.29,143.24,6.9771]
[1750865710098,6.9758,143.28,143.22,48.28]
[1750865710293,11.38778889,143.29,143.21,8.66096916]
[1750865710499,48.28,143.31,143.19,15.1068387]
[1750865710500,11.38778889,143.26,143.19,8.66096916]
[1750865710802,7.2071,143.25,143.18,46.76]
[1750865711002,7.2071,143.25,143.16,8.66096916]
[1750865711200,6.9781,143.23,143.2,6.9791]
[1750865711399,46.76,143.22,143.16,8.66096916]
[1750865711704,11.38778889,143.21,143.15,6.9818]
[1750865711894,11.38778889,143.18,143.1,8.66096916]
[1750865712098,58.14778889,143.18,143.08,8.66096916]
[1750865712402,58.14778889,143.18,143.06,24.23782759]
[1750865712403,46.76,143.18,143.09,55.42096916]
[1750865712706,2.3062,143.17,143.09,8.66096916]
[1750865712901,4.565,143.17,143.08,8.66096916]
[1750865713298,4.565,143.17,143.07,46.76]
[1750865713509,11.38778889,143.16,143.07,46.76]
[1750865713702,11.38778889,143.16,143.05,20.04875805]
[1750865713902,11.38778889,143.16,143.06,46.76]
[1750865714100,11.38778889,143.16,143.06,55.42096916]
[1750865714305,6.9827,143.14,143.1,6.9843]
[1750865714703,15.95278889,143.17,143.06,46.76]
[1750865714906,6.9824,143.14,143.1,6.984]
[1750865715104,15.95278889,143.17,143.06,46.76]
[1750865715308,11.38778889,143.15,143.06,46.76]
[1750865715503,11.38778889,143.13,143.04,2.2515]
[1750865715903,46.76,143.14,143.04,2.2515]
[1750865716106,58.14778889,143.14,143.03,58.14778889]
[1750865716310,58.14778889,143.14,143.04,2.3618]
[1750865716504,51.345,143.17,143.05,11.38778889]
[1750865716710,652.9,143.26,143.1,11.38778889]
[1750865716908,18.51448889,143.25,143.11,203.0977]
[1750865717110,7.1267,143.25,143.12,60.52958889]
[1750865717413,653.28,143.33,143.15,11.38778889]
[1750865717601,53.925,143.32,143.21,11.38778889]
[1750865717912,0.25428,143.34,143.22,46.78]
[1750865718104,0.25428,143.34,143.24,11.38778889]
[1750865718910,0.25428,143.34,143.26,11.38778889]
[1750865719304,11.64206889,143.34,143.22,13.74178889]
[1750865719504,6.9753,143.29,143.24,6.9774]
[1750865719708,46.78,143.3,143.22,46.78]
[1750865720204,53.7547,143.3,143.25,6.9766]
[1750865720602,46.78,143.3,143.25,6.9766]
[1750865720805,46.78,143.3,143.24,6.9773]
[1750865721308,6.9754,143.29,143.24,6.9773]
[1750865721513,6.9754,143.29,143.22,46.78]
[1750865721514,11.38778889,143.29,143.22,46.78]
[1750865722007,11.38778889,143.29,143.22,6.978]
[1750865722209,6.9773,143.25,143.15,11.38778889]
[1750865722410,46.78,143.26,143.16,46.78]
[1750865722798,53.7565,143.26,143.16,46.78]
[1750865723201,46.78,143.26,143.22,6.9783]
[1750865723603,46.78,143.26,143.23,6.9778]
[1750865723805,11.8451,143.3,143.2,46.78]
[1750865724005,58.6251,143.3,143.2,46.78]
[1750865724213,58.6251,143.3,143.21,11.38778889]
[1750865724512,6.9755,143.28,143.2,46.78]
[1750865724906,6.9752,143.29,143.2,46.78]
[1750865725108,51.6504,143.3,143.21,11.38778889]
[1750865725410,51.6504,143.3,143.25,6.9766]
[1750865725707,58.625,143.3,143.21,11.38778889]
[1750865725908,46.78,143.3,143.26,6.9761]
[1750865726117,46.78,143.3,143.24,58.14778889]
[1750865726407,47.01428,143.34,143.28,6.9752]
[1750865726611,58.40206889,143.34,143.24,58.14778889]
[1750865727718,6.9743,143.31,143.27,6.9757]
[1750865727913,58.40206889,143.34,143.24,58.14778889]
[1750865728214,6.9733,143.33,143.28,6.9755]
[1750865728715,6.9733,143.33,143.28,6.9752]
[1750865729024,0.25428,143.34,143.28,6.9752]
[1750865729218,0.25428,143.34,143.24,58.14778889]
[1750865729219,0.25428,143.34,143.29,6.975]
[1750865729412,6.9734,143.33,143.24,58.14778889]
[1750865729913,6.9731,143.33,143.26,11.38778889]
[1750865730118,0.25428,143.34,143.26,11.38778889]
[1750865730320,0.25428,143.34,143.28,6.9752]
[1750865730617,6.9731,143.33,143.26,11.38778889]
[1750865730818,0.25428,143.34,143.29,6.9747]
[1750865731019,0.25428,143.34,143.26,11.38778889]
[1750865731517,0.25428,143.34,143.28,11.38778889]
[1750865731821,0.25428,143.34,143.28,58.14778889]
[1750865732013,0.25428,143.34,143.3,11.38778889]
[1750865732520,46.76,143.39,143.32,11.38778889]
[1750865732817,46.76,143.43,143.32,58.14778889]
[1750865733020,46.76,143.43,143.36,6.9714]
[1750865733210,46.76,143.43,143.32,199.74]
[1750865733409,46.76,143.43,143.35,6.9719]
[1750865733614,46.76,143.43,143.32,199.74]
[1750865733919,6.97,143.4,143.35,6.9718]
[1750865734414,6.9702,143.39,143.34,6.9724]
[1750865734614,46.76,143.43,143.32,199.74]
[1750865734820,46.76,143.43,143.33,11.38778889]
[1750865735413,6.9705,143.39,143.32,199.74]
[1750865735611,58.14778889,143.43,143.32,211.12778889]
[1750865736013,58.14778889,143.43,143.33,46.74]
[1750865736607,6.9706,143.38,143.34,6.9723]
[1750865736811,58.14778889,143.43,143.32,11.38778889]
[1750865737020,58.14778889,143.43,143.33,46.74]
[1750865737820,11.38778889,143.41,143.3,2.4631]
[1750865738122,11.38778889,143.38,143.3,2.4631]
[1750865738519,46.74,143.39,143.3,13.85088889]
[1750865738717,46.74,143.39,143.32,11.38778889]
[1750865738929,11.38778889,143.44,143.33,46.74]
[1750865739222,2.3512,143.45,143.34,11.38778889]
[1750865739223,46.74,143.43,143.34,11.38778889]
[1750865739521,46.74,143.43,143.33,46.74]
[1750865739729,46.74,143.43,143.36,11.38778889]
[1750865739913,4.7277,143.45,143.37,46.74]
[1750865740115,4.7277,143.45,143.38,11.38778889]
[1750865740315,699.7,143.47,143.38,11.38778889]
[1750865740623,56.84778889,143.5,143.38,13.79098889]
[1750865741020,6.966,143.48,143.43,6.9678]
[1750865741227,45.46,143.5,143.4,11.38778889]
[1750865741526,45.46,143.5,143.43,6.9679]
[1750865741738,45.46,143.53,143.43,11.38778889]
[1750865742110,7.1228,143.54,143.43,11.38778889]
[1750865742316,7.1228,143.54,143.44,11.38778889]
[1750865742619,6.9642,143.52,143.48,6.9656]
[1750865742815,11.38778889,143.52,143.42,47.7524]
[1750865743017,11.38778889,143.53,143.42,59.14018889]
[1750865743416,11.38778889,143.53,143.47,6.9659]
[1750865743820,6.9644,143.51,143.47,6.9659]
[1750865744018,11.38778889,143.53,143.47,6.9659]
[1750865744323,11.38778889,143.53,143.42,59.14018889]
[1750865744519,11.38778889,143.53,143.42,47.7524]
[1750865744732,45.46,143.52,143.47,6.9662]
[1750865744925,52.4241,143.52,143.43,11.38778889]
[1750865745126,45.46,143.52,143.43,11.38778889]
[1750865745328,56.84778889,143.52,143.42,47.7524]
[1750865745619,11.38778889,143.5,143.42,45.46]
[1750865745825,11.38778889,143.5,143.44,6.9675]
[1750865746016,6.9656,143.49,143.42,45.46]
[1750865746525,6.9659,143.48,143.42,45.46]
[1750865747127,6.9659,143.48,143.44,6.9674]
[1750865747323,6.9655,143.49,143.42,45.46]
[1750865747624,6.9655,143.49,143.45,6.967]
[1750865747924,6.9655,143.49,143.42,45.46]
[1750865748227,11.38778889,143.5,143.42,45.46]
[1750865748228,6.9658,143.48,143.42,45.46]
[1750865748428,11.38778889,143.5,143.42,45.46]
[1750865748630,6.9668,143.46,143.42,45.46]
[1750865748818,11.38778889,143.5,143.42,45.46]
[1750865749533,11.38778889,143.48,143.38,655.0432]
[1750865749829,11.38778889,143.48,143.39,45.44]
[1750865750715,6.9667,143.47,143.43,6.9678]
[1750865751520,6.9667,143.47,143.44,6.9676]
[1750865752130,6.9669,143.46,143.43,6.968]
[1750865752729,6.9674,143.45,143.42,6.9685]
[1750865752920,11.38778889,143.48,143.39,45.44]
[1750865753120,11.38778889,143.5,143.39,45.44]
[1750865753423,11.38778889,143.5,143.39,56.82778889]
[1750865753623,11.38778889,143.51,143.39,56.82778889]
[1750865753824,6.9651,143.5,143.41,11.38778889]
[1750865754027,45.46,143.52,143.41,11.38778889]
[1750865754531,45.46,143.52,143.43,11.38778889]
[1750865754832,52.4241,143.52,143.48,6.9654]
[1750865755029,45.46,143.52,143.44,45.44]
[1750865755427,6.9657,143.49,143.46,6.9665]
[1750865755925,45.46,143.52,143.44,45.44]
[1750865756127,6.9646,143.51,143.48,6.9654]
[1750865756328,45.46,143.52,143.44,45.44]
[1750865756729,18.51058889,143.54,143.44,45.44]
[1750865757033,7.1228,143.54,143.44,45.44]
[1750865757533,6.9642,143.52,143.44,45.44]
[1750865757736,7.1228,143.54,143.44,45.44]
[1750865758031,6.9646,143.51,143.48,6.9654]
[1750865758421,13.79336565,143.54,143.45,6.67056565]
[1750865758636,6.9642,143.52,143.45,6.67056565]
[1750865758932,7.1228,143.54,143.45,6.67056565]
[1750865759138,7.1228,143.54,143.45,9.10126565]
[1750865759336,7.1228,143.54,143.49,6.9652]
[1750865759828,6.9636,143.53,143.5,6.9647]
[1750865760230,6.67056565,143.53,143.45,9.10126565]
[1750865760434,7.1228,143.54,143.44,45.44]
[1750865760435,6.67056565,143.51,143.44,45.44]
[1750865760624,6.67056565,143.51,143.44,45.42]
[1750865760934,52.09056565,143.51,143.44,45.42]
[1750865761438,6.9659,143.48,143.45,6.967]
[1750865761736,52.09056565,143.51,143.41,150.64]
[1750865761737,52.09056565,143.51,143.41,196.06]
[1750865761940,6.9657,143.49,143.46,6.9666]
[1750865762331,52.09056565,143.51,143.41,196.06]
[1750865763448,45.42,143.51,143.5,6.9648]
[1750865763645,6.9635,143.53,143.44,6.67056565]
[1750865763846,59.21336565,143.54,143.44,6.67056565]
[1750865764042,6.67056565,143.48,143.4,2.4307]
[1750865764236,6.67056565,143.46,143.38,714.4042]
[1750865764736,6.67056565,143.46,143.38,700.4632]
[1750865765243,6.9294,143.47,143.38,700.4632]
[1750865765541,6.968,143.44,143.38,700.4632]
[1750865765734,13.59996565,143.47,143.38,700.4632]
[1750865766144,13.59996565,143.47,143.38,707.13376565]
[1750865766441,11.21256565,143.47,143.38,707.13376565]
[1750865766643,11.21256565,143.47,143.45,6.9669]
[1750865766843,2.3903,143.51,143.4,6.67056565]
[1750865766844,6.67056565,143.49,143.4,6.67056565]
[1750865767043,45.42,143.5,143.42,6.67056565]
[1750865767237,45.42,143.5,143.44,6.67056565]
[1750865767435,2.3903,143.51,143.44,6.67056565]
[1750865767835,2.3036,143.52,143.44,6.67056565]
[1750865768046,6.67056565,143.56,143.48,6.67056565]
[1750865768350,6.9622,143.56,143.48,56.76909609]
[1750865768554,4.91325302,143.57,143.48,56.76909609]
[1750865768845,6.9614,143.57,143.54,6.9626]
[1750865769039,6.9614,143.57,143.48,56.76909609]
[1750865769436,45.42,143.58,143.48,56.76909609]
[1750865769642,11.34909609,143.57,143.48,45.42]
[1750865769936,6.9621,143.56,143.51,6.9643]
[1750865770246,13.82249609,143.57,143.5,6.9646]
[1750865770442,6.9633,143.54,143.48,45.42]
[1750865770647,44.04,143.54,143.45,46.3783]
[1750865770949,6.9641,143.52,143.48,6.9658]
[1750865771140,44.04,143.54,143.45,46.3783]
[1750865771338,48.93164907,143.54,143.45,51.0071]
[1750865771644,6.9656,143.49,143.45,44.04]
[1750865771943,48.93164907,143.54,143.46,6.9664]
[1750865771944,6.9651,143.5,143.46,6.9664]
[1750865772135,16.24062094,143.53,143.46,6.9664]
[1750865772647,7.27892485,143.52,143.46,6.9664]
[1750865772842,9.69442485,143.52,143.46,6.9664]
[1750865773039,2.4104,143.51,143.46,6.9664]
[1750865773349,6.9656,143.49,143.46,6.9664]
[1750865773847,6.9659,143.48,143.45,51.0071]
[1750865774147,6.9659,143.48,143.45,6.9671]
[1750865774335,2.4104,143.51,143.42,205.44909609]
[1750865774944,4.90850303,143.51,143.42,205.44909609]
[1750865775145,4.8029,143.52,143.44,11.34909609]
[1750865775345,6.9646,143.51,143.48,6.9657]
[1750865775848,6.9644,143.51,143.48,6.9657]
[1750865776047,4.8029,143.52,143.49,6.9653]
[1750865776249,48.94850303,143.54,143.44,11.34909609]
[1750865776439,4.90850303,143.53,143.44,11.34909609]
[1750865776744,44.04,143.54,143.44,11.34909609]
[1750865777148,6.9648,143.51,143.48,6.9658]
[1750865777349,44.04,143.54,143.44,11.34909609]
[1750865777647,11.34909609,143.52,143.42,205.44909609]
[1750865777836,6.9657,143.49,143.46,6.9667]
[1750865778043,2.237,143.51,143.42,205.44909609]
[1750865778240,6.9655,143.49,143.46,6.9665]
[1750865778447,2.237,143.51,143.42,205.44909609]
[1750865778648,4.5243,143.51,143.4,11.34909609]
[1750865778947,6.9666,143.47,143.41,44.04]
[1750865779337,6.9666,143.47,143.44,6.9675]
[1750865779540,6.9668,143.46,143.39,4.8277]
[1750865779746,6.9668,143.46,143.4,44.04]
[1750865779947,11.34909609,143.48,143.4,44.04]
[1750865780244,11.34909609,143.49,143.4,44.04]
[1750865780439,6.9665,143.47,143.44,6.9674]
[1750865781049,6.9661,143.48,143.45,6.9672]
[1750865781241,4.95103569,143.48,143.4,44.04]
[1750865781442,4.95089095,143.49,143.4,44.04]
[1750865782150,6.966,143.48,143.45,6.967]
[1750865782852,6.966,143.48,143.44,6.9675]
[1750865783051,4.95738458,143.49,143.4,44.04]
[1750865783255,44.04,143.5,143.4,44.04]
[1750865783256,4.95738458,143.48,143.4,44.04]
[1750865783451,11.34909609,143.48,143.42,6.9683]
[1750865783642,4.95738458,143.48,143.42,6.9683]
[1750865783847,6.9671,143.46,143.42,6.9683]
[1750865784352,4.95738458,143.47,143.43,6.9679]
[1750865784553,4.94573698,143.48,143.4,44.04]
[1750865784756,2.38872796,143.49,143.4,52.70096916]
[1750865784957,44.04,143.5,143.41,20.01006525]
[1750865785153,4.94539916,143.49,143.41,11.34909609]
[1750865785454,2.237,143.51,143.43,20.01006525]
[1750865785754,4.94603368,143.52,143.44,44.04]
[1750865785956,4.94335797,143.51,143.44,44.04]
[1750865786256,13.73939576,143.52,143.44,44.04]
[1750865786452,4.94215048,143.51,143.44,44.04]
[1750865786657,2.3152,143.52,143.44,64.05006525]
[1750865786851,7.25561413,143.52,143.44,64.05006525]
[1750865787050,4.94041413,143.52,143.48,6.9655]
[1750865787252,57.70439609,143.53,143.44,52.70096916]
[1750865787452,6.9657,143.49,143.44,44.04]
[1750865788155,6.965,143.5,143.44,44.04]
[1750865788454,57.70439609,143.53,143.44,44.04]
[1750865788455,6.9654,143.49,143.44,44.04]
[1750865788659,6.9654,143.49,143.41,201.36096916]
[1750865788957,6.9654,143.49,143.46,6.9665]
[1750865789361,6.9659,143.48,143.46,6.9665]
[1750865789863,6.9655,143.49,143.46,6.9665]
[1750865790056,16.29951581,143.51,143.46,6.9665]
[1750865790258,6.67402003,143.5,143.42,8.66096916]
[1750865791152,6.9656,143.49,143.46,6.9664]
[1750865792355,6.9656,143.49,143.42,8.66096916]
[1750865792356,6.9651,143.5,143.42,8.66096916]
[1750865792852,6.9653,143.49,143.42,8.66096916]
[1750865793158,6.67402003,143.46,143.4,8.66096916]
[1750865793360,6.9675,143.45,143.42,6.9685]
[1750865793751,6.67402003,143.46,143.4,8.66096916]
[1750865793953,6.67402003,143.46,143.39,11.12856916]
[1750865794246,6.67402003,143.46,143.39,2.4676]
[1750865794451,13.64102003,143.46,143.39,11.12856916]
[1750865794655,6.967,143.46,143.39,17.80258919]
[1750865794861,6.967,143.46,143.42,6.9683]
[1750865795059,6.9665,143.47,143.4,8.66096916]
[1750865795755,4.5821,143.48,143.41,8.66096916]
[1750865795958,2.2528,143.48,143.4,8.66096916]
[1750865796162,6.9665,143.47,143.4,8.66096916]
[1750865796357,2.2528,143.48,143.4,8.66096916]
[1750865796861,2.2528,143.48,143.43,6.9681]
[1750865796862,6.9665,143.47,143.43,6.9681]
[1750865797059,2.2528,143.48,143.4,8.66096916]
[1750865797463,6.9663,143.47,143.4,8.66096916]
[1750865797857,50.71402003,143.49,143.4,8.66096916]
[1750865798051,6.966,143.48,143.4,8.66096916]
[1750865798252,48.756,143.52,143.43,6.67402003]
[1750865798457,51.0041,143.52,143.45,6.67402003]
[1750865798656,2.3153,143.53,143.45,6.67402003]
[1750865799055,9.2789,143.53,143.49,6.9652]
[1750865799457,6.9636,143.53,143.49,6.9652]
[1750865799658,6.9633,143.54,143.47,6.67402003]
[1750865799858,4.7617,143.56,143.47,6.67402003]
[1750865800058,4.7617,143.56,143.48,44.04]
[1750865800267,6.9626,143.55,143.51,6.9643]
[1750865800456,2.3879,143.56,143.49,6.67402003]
[1750865800763,47.274,143.6,143.51,6.67402003]
[1750865800962,49.65766861,143.6,143.51,6.67402003]
[1750865801162,6.861e-05,143.6,143.53,6.67402003]
[1750865801363,4.88469289,143.69,143.58,8.66096916]
[1750865801558,6.66071802,143.7,143.59,42.5]
[1750865801756,6.9563,143.68,143.6,6.65645649]
[1750865801966,15.73881378,143.7,143.6,6.65645649]
[1750865802158,9.08535483,143.7,143.6,6.65645649]
[1750865802354,42.5,143.71,143.62,6.65645649]
[1750865802355,47.38469289,143.71,143.62,6.65645649]
[1750865802666,47.38469289,143.71,143.65,6.9572]
[1750865802968,42.5,143.71,143.62,6.65645649]
[1750865803162,6.9559,143.69,143.63,6.9583]
[1750865804080,6.9561,143.68,143.63,6.9583]
[1750865804264,6.9561,143.68,143.62,11.32784772]
[1750865804765,6.9558,143.69,143.62,11.32784772]
[1750865805268,6.9551,143.7,143.62,11.32784772]
[1750865805472,42.5,143.71,143.63,42.5]
[1750865805765,42.5,143.71,143.63,49.4582]
[1750865805967,42.5,143.71,143.63,42.5]
[1750865806962,6.9567,143.67,143.63,42.5]
[1750865808070,6.9567,143.67,143.63,49.4583]
[1750865808369,6.957,143.66,143.63,42.5]
[1750865808769,42.5,143.71,143.63,42.5]
[1750865809062,6.9564,143.68,143.63,42.5]
[1750865809265,42.5,143.71,143.63,49.4582]
[1750865809468,6.9565,143.68,143.63,49.4582]
[1750865809668,42.5,143.71,143.63,42.5]
[1750865809874,53.82784772,143.71,143.63,42.5]
[1750865810169,42.5,143.71,143.63,42.5]
[1750865810763,6.9553,143.7,143.64,11.32784772]
[1750865810960,42.5,143.71,143.64,11.32784772]
[1750865811170,42.5,143.71,143.64,18.28544772]
[1750865811363,42.5,143.71,143.64,6.9576]
[1750865811565,42.5,143.71,143.6,11.32784772]
[1750865811764,42.5,143.71,143.61,42.46]
[1750865811966,6.9561,143.68,143.61,42.46]
[1750865812155,42.5,143.71,143.61,42.46]
[1750865812562,42.5,143.71,143.66,6.9569]
[1750865813071,42.5,143.71,143.63,11.32784772]
[1750865813566,4.5766,143.72,143.63,11.32784772]
[1750865813769,6.9552,143.7,143.63,11.32784772]
[1750865813959,4.5766,143.72,143.65,11.32784772]
[1750865814156,4.5766,143.72,143.65,53.78784772]
[1750865814360,4.5766,143.72,143.65,42.46]
[1750865815371,44.9269,143.74,143.66,11.32784772]
[1750865816672,6.9539,143.73,143.68,6.9559]
[1750865816865,44.9269,143.74,143.63,11.32784772]
[1750865817069,44.9269,143.74,143.63,53.78784772]
[1750865817768,11.32784772,143.73,143.63,53.78784772]
[1750865818268,44.9269,143.74,143.66,11.32784772]
[1750865818773,6.9539,143.73,143.66,11.32784772]
[1750865819263,44.9269,143.74,143.66,11.32784772]
[1750865819264,6.9529,143.75,143.7,6.9551]
[1750865819570,47.1602,143.77,143.67,44.7131]
[1750865819764,6.9525,143.76,143.71,6.9543]
[1750865820075,6.9525,143.76,143.69,11.32784772]
[1750865820276,6.9525,143.76,143.72,6.9541]
[1750865820674,6.9528,143.75,143.69,11.32784772]
[1750865820876,47.1602,143.77,143.69,11.32784772]
[1750865821374,47.1602,143.77,143.7,6.9548]
[1750865821576,47.1602,143.77,143.69,11.32784772]
[1750865821775,6.9524,143.76,143.69,11.32784772]
[1750865822167,6.9524,143.76,143.71,6.9543]
[1750865822363,47.1602,143.77,143.67,47.0558]
[1750865822364,47.1602,143.77,143.67,58.38364772]
[1750865822564,47.1602,143.77,143.7,6.9549]
[1750865822769,6.954,143.73,143.67,42.46]
[1750865823377,6.9542,143.72,143.67,42.46]
[1750865823675,47.1602,143.77,143.67,42.46]
[1750865823879,11.32784772,143.75,143.65,11.32784772]
[1750865824077,11.32784772,143.75,143.66,6.9568]
[1750865824279,6.65273487,143.74,143.64,53.95023487]
[1750865824472,6.65273487,143.74,143.66,6.65273487]
[1750865824473,42.44,143.73,143.66,6.65273487]
[1750865824674,6.9544,143.72,143.68,6.9558]
[1750865825082,6.9546,143.71,143.67,6.9563]
[1750865825273,4.7002,143.77,143.66,6.65273487]
[1750865825479,11.35293487,143.77,143.66,6.65273487]
[1750865825685,6.954,143.73,143.68,6.9557]
[1750865825982,11.35293487,143.77,143.66,6.65273487]
[1750865826171,11.35293487,143.77,143.69,6.9553]
[1750865826375,11.35293487,143.77,143.66,6.65273487]
[1750865826586,6.65273487,143.75,143.66,6.65273487]
[1750865826783,6.9538,143.73,143.69,6.9553]
[1750865827187,6.65273487,143.75,143.66,6.65273487]
[1750865827383,11.35293487,143.77,143.68,6.65273487]